bitfinex/quotes_BTCUSD_20241110
["timestamp","ask_amount","ask_price","bid_price","bid_amount"]
[1731222007249,0.001676,78850.0,78845.0,0.1]
[1731222008548,0.001676,78850.0,78840.0,0.075]
[1731222008755,0.12594221,78849.0,78837.0,0.1]
[1731222008960,0.12594221,78849.0,78839.0,0.1]
[1731222010666,0.001676,78850.0,78839.0,0.1]
[1731222012244,0.5176408,78857.0,78839.0,0.1]
[1731222012565,0.19002736,78854.0,78839.0,0.1]
[1731222012773,0.492376,78862.0,78847.0,0.075]
[1731222013101,0.19002736,78861.0,78850.0,0.1]
[1731222013253,0.000718,78873.0,78851.0,0.0494352]
[1731222013596,0.000718,78873.0,78854.0,0.0010352]
[1731222014655,0.000718,78873.0,78851.0,0.1484]
[1731222015075,0.000718,78873.0,78852.0,0.005064]
[1731222015076,0.12594221,78865.0,78852.0,0.005064]
[1731222015429,0.19074536,78873.0,78856.0,0.1]
[1731222016207,0.000718,78873.0,78858.0,0.19002736]
[1731222016390,0.000718,78873.0,78859.0,0.1]
[1731222017555,0.000718,78873.0,78861.0,0.1]
[1731222018520,0.000718,78873.0,78855.0,0.0010352]
[1731222020045,0.000718,78873.0,78855.0,0.17871052]
[1731222020226,0.000718,78873.0,78856.0,0.1]
[1731222020425,0.000718,78873.0,78862.0,0.1]
[1731222020786,0.000718,78873.0,78865.0,0.0775352]
[1731222020913,0.000718,78873.0,78865.0,0.41406256]
[1731222021113,0.000718,78873.0,78865.0,0.3975502]
[1731222021405,0.000718,78873.0,78865.0,0.35497741]
[1731222021808,0.000718,78873.0,78865.0,0.35697741]
[1731222022383,0.000718,78873.0,78865.0,0.35497741]
[1731222022597,0.000718,78873.0,78865.0,0.36697741]
[1731222022797,0.000718,78873.0,78867.0,0.1410352]
[1731222022985,0.000718,78873.0,78867.0,0.36697741]
[1731222024051,0.19002736,78895.0,78888.0,0.0010352]
[1731222024222,0.19002736,78894.0,78888.0,0.58514696]
[1731222024416,0.19002736,78893.0,78888.0,0.36021052]
[1731222024617,0.19002736,78893.0,78888.0,0.1775352]
[1731222024820,0.19002736,78905.0,78888.0,0.1775352]
[1731222025020,0.19002736,78905.0,78888.0,0.36021052]
[1731222026391,0.000718,78910.0,78888.0,0.48615273]
[1731222026542,0.19002736,78904.0,78888.0,0.48615273]
[1731222026753,0.19002736,78904.0,78888.0,0.48815273]
[1731222026965,0.19002736,78904.0,78888.0,0.48615273]
[1731222027590,0.16956136,78904.0,78896.0,0.1]
[1731222028016,0.000718,78910.0,78896.0,0.1]
[1731222028211,0.000718,78910.0,78900.0,0.0010352]
[1731222029063,0.000718,78910.0,78901.0,0.0010352]
[1731222029323,0.000718,78910.0,78904.0,0.0010352]
[1731222029523,0.000718,78910.0,78903.0,0.0010352]
[1731222030457,0.000718,78910.0,78899.0,0.10438643]
[1731222030458,0.000718,78910.0,78899.0,0.1]
[1731222030670,1.0,78900.0,78899.0,0.29002736]
[1731222031072,1.0,78900.0,78897.0,0.0010352]
[1731222031475,1.0,78900.0,78894.0,0.00042163]
[1731222031675,1.0,78900.0,78898.0,0.1]
[1731222032675,1.0,78900.0,78896.0,0.10042163]
[1731222033088,1.0,78900.0,78896.0,0.1]
[1731222033305,1.0,78900.0,78890.0,0.1]
[1731222033512,1.0,78900.0,78888.0,0.0765]
[1731222033716,1.0,78900.0,78890.0,0.1]
[1731222034734,0.12594221,78899.0,78890.0,0.29002736]
[1731222035252,1.0,78900.0,78890.0,0.29002736]
[1731222035655,1.0,78900.0,78893.0,0.1]
[1731222036063,1.0,78900.0,78894.0,0.04526112]
[1731222036757,1.0,78900.0,78893.0,0.1]
[1731222037165,0.12594221,78899.0,78878.0,0.02699173]
[1731222037366,0.12594221,78899.0,78892.0,0.19002736]
[1731222037541,1.0,78900.0,78888.0,0.17767532]
[1731222037740,0.12594221,78899.0,78882.0,0.17767532]
[1731222038005,0.12594221,78899.0,78885.0,0.19002736]
[1731222038370,0.12230317,78899.0,78885.0,0.19002736]
[1731222038584,0.12230317,78899.0,78888.0,0.17767532]
[1731222038785,1.0,78900.0,78895.0,0.1]
[1731222040255,1.0,78900.0,78888.0,0.1]
[1731222040429,1.0,78900.0,78894.0,0.1]
[1731222040632,0.001676,78899.0,78894.0,0.1]
[1731222041613,0.001676,78899.0,78888.0,0.1]
[1731222042228,0.978676,78900.0,78888.0,0.1]
[1731222044216,0.978676,78900.0,78894.0,0.1]
[1731222044404,0.9667937,78900.0,78899.0,0.27767532]
[1731222045360,0.9667937,78900.0,78890.0,0.1]
[1731222045598,0.9667937,78900.0,78897.0,0.1]
[1731222046720,0.9667937,78900.0,78898.0,0.002]
[1731222047029,0.9667937,78900.0,78897.0,0.1]
[1731222048186,0.9667937,78900.0,78890.0,0.1]
[1731222048396,0.9667937,78900.0,78899.0,0.27767532]
[1731222051085,0.9667937,78900.0,78899.0,0.27967532]
[1731222051287,0.9667937,78900.0,78899.0,0.27767532]
[1731222052490,0.9684697,78900.0,78899.0,0.27767532]
[1731222055464,0.96293454,78900.0,78899.0,0.27767532]
[1731222055674,0.95676735,78900.0,78899.0,0.27767532]
[1731222056976,0.95071625,78900.0,78899.0,0.27767532]
[1731222057614,0.92771625,78900.0,78899.0,0.27767532]
[1731222058386,0.9222477,78900.0,78899.0,0.27767532]
[1731222059067,0.9222477,78900.0,78899.0,0.30067532]
[1731222060953,0.91846272,78900.0,78899.0,0.30067532]
[1731222069542,0.91846272,78900.0,78899.0,0.2018]
[1731222069762,0.91846272,78900.0,78899.0,0.37947532]
[1731222070645,0.89446272,78900.0,78899.0,0.59331198]
[1731222070877,0.20428943,78900.0,78899.0,0.77140893]
[1731222071100,0.20428943,78900.0,78899.0,0.77640893]
[1731222071327,0.20428943,78900.0,78899.0,0.78140893]
[1731222071545,0.20428943,78900.0,78899.0,0.42605829]
[1731222072220,0.20428943,78900.0,78899.0,0.78140893]
[1731222072851,0.18128943,78900.0,78899.0,0.78140893]
[1731222073072,0.15728943,78900.0,78899.0,0.78140893]
[1731222074640,0.000718,78910.0,78909.0,0.45535064]
[1731222075495,0.000718,78910.0,78909.0,0.47835064]
[1731222075708,0.000718,78910.0,78909.0,0.30067532]
[1731222077856,0.000718,78910.0,78909.0,0.023]
[1731222079539,0.000718,78910.0,78909.0,0.0255343]
[1731222080013,0.01759453,78921.0,78909.0,0.0255343]
[1731222080228,0.00895763,78921.0,78910.0,0.023]
[1731222080446,0.00895763,78921.0,78909.0,0.023]
[1731222080897,0.00895763,78921.0,78911.0,0.023]
[1731222081387,0.07725763,78924.0,78911.0,0.023]
[1731222082276,0.00457837,78920.0,78911.0,0.023]
[1731222082496,0.00457837,78920.0,78911.0,0.123]
[1731222082497,0.12594221,78919.0,78911.0,0.123]
[1731222085591,0.12594221,78919.0,78911.0,0.023]
[1731222085793,0.12594221,78919.0,78902.0,0.1]
[1731222087516,0.10294221,78919.0,78902.0,0.1]
[1731222088800,0.10461821,78919.0,78902.0,0.1]
[1731222089905,0.001676,78919.0,78910.0,0.1758]
[1731222090971,0.001676,78919.0,78910.0,0.0758]
[1731222091225,0.001676,78919.0,78915.0,0.1]
[1731222091431,0.001676,78919.0,78915.0,0.10253409]
[1731222091650,0.001676,78919.0,78915.0,0.13909862]
[1731222092491,0.001676,78919.0,78915.0,0.10253409]
[1731222093343,0.001676,78919.0,78916.0,0.002]
[1731222094241,0.001676,78919.0,78915.0,0.1]
[1731222096471,0.001676,78919.0,78916.0,0.0758]
[1731222097950,0.001676,78919.0,78910.0,0.1]
[1731222098154,0.001676,78919.0,78912.0,0.0758]
[1731222098597,0.001676,78919.0,78915.0,0.1]
[1731222099158,0.001676,78919.0,78918.0,0.1]
[1731222099365,0.001676,78919.0,78917.0,0.00042163]
[1731222099572,0.001676,78919.0,78915.0,0.10042163]
[1731222099750,0.001676,78919.0,78915.0,0.1]
[1731222099969,0.001676,78919.0,78917.0,0.00042163]
[1731222100200,0.001676,78919.0,78915.0,0.1]
[1731222100201,0.001676,78919.0,78915.0,0.09811163]
[1731222101068,0.001676,78919.0,78915.0,0.09894963]
[1731222102465,0.16942136,78936.0,78915.0,0.09894963]
[1731222102727,0.12594221,78935.0,78915.0,0.09894963]
[1731222102857,0.12594221,78935.0,78918.0,0.1]
[1731222103898,0.0125637,78940.0,78915.0,0.000838]
[1731222103899,0.17767532,78919.0,78915.0,0.000838]
[1731222104120,0.01,78916.0,78915.0,0.000838]
[1731222104321,0.1333,78916.0,78915.0,0.000838]
[1731222105582,0.25924221,78916.0,78915.0,0.000838]
[1731222107342,0.25424221,78916.0,78915.0,0.000838]
[1731222108097,0.25424221,78916.0,78904.0,0.098938]
[1731222108317,0.005,78909.0,78904.0,0.098938]
[1731222109359,0.005,78912.0,78904.0,0.098938]
[1731222109582,0.005,78909.0,78904.0,0.098938]
[1731222110746,0.005,78909.0,78897.0,0.000838]
[1731222111097,0.005,78910.0,78897.0,0.000838]
[1731222111302,0.005,78909.0,78897.0,0.000838]
[1731222111943,0.005,78910.0,78897.0,0.000838]
[1731222112154,0.005,78909.0,78897.0,0.000838]
[1731222112354,0.17767532,78901.0,78897.0,0.000838]
[1731222112554,0.17767532,78907.0,78897.0,0.000838]
[1731222112732,0.12594221,78908.0,78903.0,0.1]
[1731222112956,0.12594221,78908.0,78904.0,0.000838]
[1731222113715,0.005,78909.0,78904.0,0.000838]
[1731222116338,0.005,78908.0,78904.0,0.000838]
[1731222117482,0.1053,78916.0,78904.0,0.000838]
[1731222117706,0.12594221,78915.0,78904.0,0.000838]
[1731222118573,0.13094221,78915.0,78904.0,0.000838]
[1731222118978,0.12594221,78915.0,78907.0,0.1]
[1731222120078,0.12594221,78915.0,78904.0,0.000838]
[1731222120278,0.12594221,78915.0,78906.0,0.1]
[1731222130134,0.001676,78916.0,78906.0,0.1]
[1731222130319,0.12761821,78916.0,78906.0,0.1]
[1731222130933,0.12720218,78916.0,78906.0,0.1]
[1731222131135,0.12679059,78916.0,78906.0,0.1]
[1731222132658,0.10379059,78916.0,78906.0,0.1]
[1731222134553,0.10379059,78916.0,78907.0,0.0816]
[1731222135532,0.10379059,78916.0,78908.0,0.11638549]
[1731222136150,0.10379059,78916.0,78909.0,0.1]
[1731222136806,0.09879059,78916.0,78909.0,0.1]
[1731222137811,0.10046659,78916.0,78909.0,0.1]
[1731222140203,0.10046659,78916.0,78907.0,0.0816]
[1731222140404,0.10046659,78916.0,78908.0,0.1]
[1731222140648,1.0,78910.0,78908.0,0.1]
[1731222142297,0.10046659,78916.0,78908.0,0.1]
[1731222145707,0.10046659,78916.0,78907.0,0.0816]
[1731222146120,0.10046659,78916.0,78906.0,0.003238]
[1731222147523,0.07746659,78916.0,78906.0,0.003238]
[1731222149204,0.005,78914.0,78906.0,0.05458323]
[1731222149427,0.12594221,78913.0,78906.0,0.003238]
[1731222150123,1.0,78910.0,78906.0,0.003238]
[1731222150326,0.12594221,78909.0,78906.0,0.003238]
[1731222153649,1.0,78910.0,78906.0,0.16979657]
[1731222153872,1.0,78910.0,78907.0,0.1]
[1731222154019,0.99044697,78910.0,78907.0,0.1]
[1731222154215,0.99044697,78910.0,78908.0,0.0787]
[1731222159180,0.99044697,78910.0,78906.0,0.0535396]
[1731222161921,0.1289,78925.0,78906.0,0.0535396]
[1731222161922,0.12602297,78925.0,78906.0,0.0535396]
[1731222162126,0.12594221,78924.0,78907.0,0.11638549]
[1731222162334,0.12594221,78924.0,78909.0,0.1766]
[1731222162539,0.10294221,78924.0,78909.0,0.1766]
[1731222162740,0.10294221,78924.0,78912.0,0.1]
[1731222167554,0.0826,78923.0,78913.0,0.1]
[1731222167756,0.12594221,78922.0,78913.0,0.1]
[1731222171698,0.11638549,78917.0,78906.0,0.0535396]
[1731222171897,0.12594221,78916.0,78912.0,0.101678]
[1731222173708,0.12594221,78916.0,78912.0,0.001678]
[1731222177065,0.0463,78915.0,78912.0,0.001678]
[1731222177246,0.12594221,78914.0,78912.0,0.001678]
[1731222177997,0.10294221,78914.0,78912.0,0.001678]
[1731222178345,0.2193277,78914.0,78912.0,0.001678]
[1731222178556,0.568576,78913.0,78912.0,0.001678]
[1731222178926,0.69451821,78913.0,78912.0,0.001678]
[1731222179133,0.8109037,78913.0,78912.0,0.001678]
[1731222179556,0.7347037,78913.0,78912.0,0.001678]
[1731222180385,0.93228919,78913.0,78912.0,0.001678]
[1731222180608,0.69951821,78913.0,78912.0,0.001678]
[1731222181560,0.93228919,78913.0,78912.0,0.001678]
[1731222181765,0.8159037,78913.0,78912.0,0.001678]
[1731222184716,0.8109037,78913.0,78912.0,0.001678]
[1731222184916,0.8159037,78913.0,78912.0,0.001678]
[1731222186008,0.7347037,78913.0,78912.0,0.001678]
[1731222186211,0.7397037,78913.0,78912.0,0.001678]
[1731222186717,0.62331821,78913.0,78912.0,0.001678]
[1731222191561,0.7397037,78913.0,78912.0,0.001678]
[1731222192446,0.7167037,78913.0,78912.0,0.001678]
[1731222194577,0.60031821,78913.0,78912.0,0.001678]
[1731222194782,0.005,78912.0,78906.0,0.0502176]
[1731222194989,0.12594221,78911.0,78905.0,0.1788]
[1731222199582,0.12594221,78911.0,78905.0,0.23021287]
[1731222199740,0.0492,78910.0,78905.0,0.15141287]
[1731222199945,0.005,78895.0,78881.0,0.19002736]
[1731222200205,0.11638549,78887.0,78872.0,0.19002736]
[1731222200501,0.11638549,78891.0,78872.0,0.19002736]
[1731222201142,0.005,78889.0,78872.0,0.05234858]
[1731222201369,0.12594221,78888.0,78873.0,0.19002736]
[1731222201567,0.12594221,78888.0,78865.0,0.0799]
[1731222201568,0.12594221,78881.0,78865.0,0.0799]
[1731222201737,0.446376,78880.0,78873.0,0.19002736]
[1731222201938,0.12594221,78879.0,78865.0,0.13171922]
[1731222202173,0.12594221,78879.0,78868.0,0.19002736]
[1731222202523,0.12594221,78879.0,78870.0,0.11638549]
[1731222202766,0.12594221,78879.0,78871.0,0.1]
[1731222203725,0.12094221,78879.0,78871.0,0.1]
[1731222204942,0.12094221,78879.0,78866.0,0.21638549]
[1731222205150,0.12094221,78879.0,78868.0,0.1]
[1731222207630,0.09794221,78879.0,78866.0,0.1]
[1731222209579,0.09794221,78879.0,78865.0,0.13171922]
[1731222209580,0.30641285,78877.0,78865.0,0.05181922]
[1731222209787,0.12594221,78876.0,78868.0,0.000839]
[1731222209996,0.12138549,78869.0,78868.0,0.000839]
[1731222210217,0.2473277,78869.0,78868.0,0.000839]
[1731222210471,0.13094221,78869.0,78868.0,0.000839]
[1731222210677,0.285589,78869.0,78868.0,0.000839]
[1731222210877,0.2473277,78869.0,78868.0,0.000839]
[1731222211440,0.30859446,78869.0,78868.0,0.000839]
[1731222212397,0.30859446,78869.0,78868.0,0.05324706]
[1731222212728,0.30857041,78869.0,78868.0,0.000839]
[1731222212898,0.48174746,78869.0,78868.0,0.000839]
[1731222213282,0.13091816,78869.0,78868.0,0.000839]
[1731222213488,0.12591816,78869.0,78868.0,0.000839]
[1731222215637,0.30857041,78869.0,78868.0,0.000839]
[1731222216599,0.31357041,78869.0,78868.0,0.000839]
[1731222216814,0.88894641,78869.0,78868.0,0.000839]
[1731222217034,0.97784105,78869.0,78868.0,0.000839]
[1731222217399,1.37784105,78869.0,78868.0,0.000839]
[1731222218018,1.37784105,78869.0,78868.0,0.05256127]
[1731222218448,1.37784105,78869.0,78868.0,0.000839]
[1731222218994,1.2001888,78869.0,78868.0,0.000839]
[1731222220245,1.11129416,78869.0,78868.0,0.000839]
[1731222220590,0.57229416,78869.0,78868.0,0.05305714]
[1731222220764,0.446376,78869.0,78868.0,0.000839]
[1731222220968,0.30111465,78869.0,78868.0,0.000839]
[1731222221185,0.61708422,78869.0,78868.0,0.000839]
[1731222221321,0.42705686,78869.0,78868.0,0.000839]
[1731222222740,0.40405686,78869.0,78868.0,0.000839]
[1731222225398,0.27811465,78869.0,78868.0,0.05263008]
[1731222225606,0.09777933,78884.0,78868.0,0.100839]
[1731222225814,0.19002736,78877.0,78868.0,0.100839]
[1731222225994,0.12594221,78876.0,78868.0,0.100839]
[1731222226595,0.12594221,78876.0,78868.0,0.000839]
[1731222226841,0.12594221,78876.0,78862.0,0.095839]
[1731222227049,0.12594221,78876.0,78864.0,0.19002736]
[1731222229102,0.12594221,78876.0,78865.0,0.1]
[1731222231269,0.11321546,78876.0,78867.0,0.17765225]
[1731222231471,0.11321546,78876.0,78868.0,0.1]
[1731222233185,0.11321546,78876.0,78868.0,0.100839]
[1731222233412,0.11489346,78876.0,78868.0,0.100839]
[1731222233838,0.11489346,78876.0,78872.0,0.19002736]
[1731222234017,0.11489346,78876.0,78874.0,0.1]
[1731222235148,0.11489346,78876.0,78870.0,0.1]
[1731222237847,0.09189346,78876.0,78870.0,0.1]
[1731222239415,0.09189346,78876.0,78869.0,0.1812]
[1731222245949,1.0,78870.0,78869.0,0.1812]
[1731222246376,0.90918498,78870.0,78869.0,0.182039]
[1731222246521,0.85904498,78870.0,78869.0,0.182039]
[1731222246735,0.76703498,78870.0,78869.0,0.182039]
[1731222246903,0.72180622,78870.0,78869.0,0.182039]
[1731222247103,0.09397933,78887.0,78869.0,0.229439]
[1731222247312,0.19002736,78885.0,78883.0,0.1762]
[1731222247528,0.005,78905.0,78884.0,0.0474]
[1731222247737,0.0849,78906.0,78896.0,0.17765225]
[1731222247738,0.35934221,78904.0,78896.0,0.17765225]
[1731222247947,0.2334,78903.0,78898.0,0.0474]
[1731222248174,0.2334,78903.0,78902.0,0.1]
[1731222248382,0.19002736,78925.0,78902.0,0.1]
[1731222248603,0.19002736,78916.0,78902.0,0.1]
[1731222248812,0.12594221,78915.0,78903.0,0.19002736]
[1731222249013,0.2334,78914.0,78904.0,0.1]
[1731222249207,0.12594221,78913.0,78904.0,0.1]
[1731222250424,0.2334,78912.0,78904.0,0.1]
[1731222250628,0.12594221,78911.0,78904.0,0.1]
[1731222251510,0.12594221,78911.0,78898.0,0.0524]
[1731222251738,0.12594221,78907.0,78895.0,0.19002736]
[1731222251943,0.12594221,78907.0,78896.0,0.1]
[1731222252299,0.12594221,78907.0,78904.0,0.1]
[1731222253103,0.10294221,78907.0,78904.0,0.1]
[1731222253463,0.10294221,78907.0,78906.0,0.1]
[1731222254471,0.10294221,78907.0,78902.0,0.0762]
[1731222257065,0.2334,78906.0,78902.0,0.0762]
[1731222257264,0.35934221,78906.0,78902.0,0.0762]
[1731222257464,0.2334,78905.0,78902.0,0.0762]
[1731222258073,0.12594221,78906.0,78902.0,0.0762]
[1731222258540,0.2334,78905.0,78902.0,0.0762]
[1731222258695,0.12594221,78906.0,78902.0,0.0762]
[1731222259261,0.2334,78905.0,78902.0,0.0762]
[1731222259833,0.12594221,78906.0,78902.0,0.0762]
[1731222264789,0.12594221,78905.0,78895.0,0.05228956]
[1731222264991,0.12594221,78905.0,78896.0,0.19002736]
[1731222266240,0.12594221,78905.0,78897.0,0.1]
[1731222266933,0.12594221,78905.0,78892.0,0.0829]
[1731222267053,0.12594221,78905.0,78896.0,0.1]
[1731222267881,0.10294221,78905.0,78896.0,0.1]
[1731222268523,0.07336784,78905.0,78896.0,0.1]
[1731222268945,0.07336784,78905.0,78892.0,0.0829]
[1731222269145,0.07336784,78905.0,78894.0,0.1]
[1731222270099,0.07336784,78905.0,78895.0,0.023]
[1731222270321,0.2334,78904.0,78898.0,0.023]
[1731222270674,0.12594221,78903.0,78898.0,0.023]
[1731222276088,0.35934221,78903.0,78898.0,0.023]
[1731222277793,0.35934221,78903.0,78898.0,0.07546044]
[1731222277945,0.35934221,78903.0,78898.0,0.023]
[1731222279382,1.0,78900.0,78898.0,0.023]
[1731222279571,0.12594221,78899.0,78898.0,0.023]
[1731222282595,0.12594221,78899.0,78898.0,0.07420588]
[1731222282830,0.10294221,78899.0,78898.0,0.023]
[1731222284441,0.12594221,78900.0,78898.0,0.023]
[1731222284615,0.12594221,78900.0,78899.0,0.2001]
[1731222289608,0.12569021,78900.0,78899.0,0.2001]
[1731222291839,0.12569021,78900.0,78899.0,0.023]
[1731222292266,0.12569021,78900.0,78898.0,0.05110854]
[1731222292267,0.25163242,78900.0,78898.0,0.03110854]
[1731222292447,0.12594221,78899.0,78897.0,0.001678]
[1731222293366,0.12594221,78899.0,78897.0,0.05236565]
[1731222293513,0.12594221,78899.0,78897.0,0.001678]
[1731222297795,0.10294221,78899.0,78897.0,0.001678]
[1731222300678,0.12652921,78900.0,78897.0,0.001678]
[1731222300877,0.12652921,78900.0,78898.0,0.0804]
[1731222303072,0.12652921,78900.0,78897.0,0.001678]
[1731222309355,0.38752921,78900.0,78897.0,0.001678]
[1731222310475,0.38752921,78900.0,78899.0,0.2295]
[1731222310685,0.22709382,78900.0,78899.0,0.2295]
[1731222312963,0.20409382,78900.0,78899.0,0.2295]
[1731222313381,0.20409382,78900.0,78899.0,0.34594105]
[1731222315133,0.1584449,78900.0,78899.0,0.34594105]
[1731222315682,0.1584449,78900.0,78899.0,0.2295]
[1731222318687,0.1238849,78900.0,78899.0,0.2295]
[1731222318940,0.11685403,78900.0,78899.0,0.2295]
[1731222320506,0.11853203,78900.0,78899.0,0.2295]
[1731222321396,0.08377203,78900.0,78899.0,0.2295]
[1731222324091,0.01331029,78900.0,78899.0,0.2295]
[1731222324756,3.9e-05,78905.0,78901.0,0.11644105]
[1731222325068,3.9e-05,78905.0,78902.0,0.1]
[1731222327771,0.000839,78907.0,78902.0,0.1]
[1731222327949,0.19002736,78918.0,78902.0,0.1]
[1731222327950,0.16790536,78918.0,78902.0,0.1]
[1731222328159,0.12594221,78917.0,78902.0,0.1]
[1731222328384,0.12594221,78917.0,78904.0,0.1]
[1731222329151,0.12594221,78917.0,78904.0,0.15069141]
[1731222329995,0.11644105,78916.0,78904.0,0.15069141]
[1731222330217,0.12594221,78915.0,78904.0,0.15069141]
[1731222331951,0.12594221,78915.0,78905.0,0.00408837]
[1731222332849,0.12678121,78915.0,78905.0,0.00408837]
[1731222335268,0.05721903,78914.0,78905.0,0.00408837]
[1731222335483,0.12594221,78913.0,78905.0,0.00408837]
[1731222339449,0.11644105,78912.0,78905.0,0.00408837]
[1731222339667,0.11644105,78908.0,78905.0,0.00408837]
[1731222339892,0.15475054,78907.0,78905.0,0.00408837]
[1731222340300,0.12594221,78907.0,78905.0,0.00408837]
[1731222341270,0.2334,78906.0,78905.0,0.00408837]
[1731222341649,0.35934221,78906.0,78905.0,0.18618837]
[1731222341850,0.33734221,78906.0,78905.0,0.23598837]
[1731222342572,0.000839,78915.0,78905.0,0.23598837]
[1731222342839,0.12594221,78914.0,78905.0,0.24098837]
[1731222343066,0.12594221,78914.0,78906.0,0.005]
[1731222343269,0.10294221,78914.0,78906.0,0.005]
[1731222343569,0.10294221,78914.0,78907.0,0.0041609]
[1731222343730,0.10294221,78914.0,78907.0,0.1041609]
[1731222345309,0.10294221,78914.0,78909.0,0.005]
[1731222345731,0.10294221,78914.0,78910.0,0.00915761]
[1731222345933,0.10294221,78914.0,78910.0,0.00415761]
[1731222346143,0.10294221,78914.0,78910.0,0.00915761]
[1731222346274,0.10294221,78914.0,78910.0,0.005]
[1731222346475,0.10294221,78914.0,78911.0,0.00415651]
[1731222346776,0.10294221,78914.0,78911.0,0.005]
[1731222347182,0.12594221,78913.0,78912.0,0.00415542]
[1731222347402,0.000839,78924.0,78914.0,0.1]
[1731222347606,0.000839,78924.0,78918.0,0.0821]
[1731222347607,0.12594221,78923.0,78918.0,0.0821]
[1731222347808,0.12594221,78923.0,78919.0,0.00415761]
[1731222348014,0.12594221,78923.0,78922.0,0.005]
[1731222348279,0.12594221,78923.0,78922.0,0.00915432]
[1731222348490,0.12594221,78923.0,78922.0,0.24105432]
[1731222348663,0.000839,78924.0,78923.0,0.105]
[1731222349198,0.00051802,78924.0,78923.0,0.19124611]
[1731222349401,0.00032098,78924.0,78923.0,0.19124611]
[1731222349633,0.001676,78936.0,78924.0,0.005]
[1731222349843,0.12594221,78935.0,78930.0,0.005]
[1731222350231,0.12594221,78935.0,78931.0,0.00414268]
[1731222350454,0.12594221,78935.0,78932.0,0.005]
[1731222350668,0.12594221,78935.0,78934.0,0.1]
[1731222351117,0.12594221,78935.0,78934.0,0.23603939]
[1731222351328,0.001676,78936.0,78935.0,0.005]
[1731222351529,0.12761821,78936.0,78935.0,0.005]
[1731222351733,0.12761821,78936.0,78934.0,0.0821]
[1731222351935,0.12761821,78936.0,78935.0,0.00413235]
[1731222352497,0.12761821,78936.0,78935.0,0.00913235]
[1731222352498,0.001676,78936.0,78935.0,0.00913235]
[1731222352698,0.001676,78936.0,78935.0,0.10913235]
[1731222352905,0.001676,78936.0,78935.0,0.13213235]
[1731222353336,0.12761821,78936.0,78935.0,0.10413235]
[1731222353541,0.26972156,78936.0,78935.0,0.10413235]
[1731222353769,0.33262156,78936.0,78935.0,0.00413235]
[1731222354093,0.0457,78935.0,78924.0,0.19002736]
[1731222354304,0.12594221,78934.0,78932.0,0.19002736]
[1731222354507,0.12594221,78934.0,78908.0,0.0871]
[1731222354719,0.12594221,78929.0,78900.0,1.0]
[1731222354947,0.002,78928.0,78922.0,0.19002736]
[1731222355150,0.12594221,78927.0,78900.0,1.0]
[1731222355526,0.11644105,78915.0,78900.0,1.0]
[1731222355728,0.12594221,78914.0,78900.0,1.0]
[1731222356134,0.02362182,78933.0,78907.0,0.11644105]
[1731222356338,0.12594221,78932.0,78923.0,0.11644105]
[1731222356564,0.10594221,78932.0,78924.0,0.023]
[1731222357001,0.10594221,78932.0,78921.0,0.023]
[1731222357829,0.08294221,78932.0,78920.0,0.0746097]
[1731222358950,0.08378121,78932.0,78920.0,0.0746097]
[1731222359174,0.11005908,78932.0,78920.0,0.0746097]
[1731222359377,0.08378121,78932.0,78920.0,0.0746097]
[1731222361660,0.08378121,78932.0,78922.0,0.023]
[1731222362060,0.08378121,78932.0,78924.0,0.023]
[1731222362505,0.08378121,78932.0,78926.0,0.023]
[1731222362935,0.09232693,78932.0,78927.0,0.00638844]
[1731222363143,0.15522693,78932.0,78927.0,0.00638844]
[1731222363344,0.15522693,78932.0,78920.0,0.0516097]
[1731222363556,0.15522693,78932.0,78921.0,0.023]
[1731222363760,0.15522693,78932.0,78922.0,0.023]
[1731222363977,0.03342244,78931.0,78922.0,0.023]
[1731222364182,0.12594221,78930.0,78916.0,0.023]
[1731222364595,0.12594221,78930.0,78918.0,0.023]
[1731222364820,0.12594221,78930.0,78920.0,0.023]
[1731222364943,0.12594221,78930.0,78921.0,0.00639596]
[1731222365150,0.04089709,78929.0,78915.0,0.023]
[1731222365459,0.12594221,78928.0,78911.0,0.005]
[1731222365858,0.12594221,78928.0,78913.0,0.023]
[1731222366288,0.12594221,78928.0,78915.0,0.023]
[1731222366464,0.04164455,78927.0,78915.0,0.023]
[1731222366695,0.12594221,78926.0,78912.0,0.023]
[1731222367090,0.12594221,78926.0,78914.0,0.023]
[1731222367506,0.003176,78936.0,78919.0,0.17732149]
[1731222367712,0.12594221,78935.0,78920.0,0.023]
[1731222367914,0.12594221,78935.0,78920.0,0.02940912]
[1731222368291,0.03190034,78934.0,78920.0,0.02940912]
[1731222368526,0.12594221,78933.0,78920.0,0.02940912]
[1731222369357,0.12594221,78933.0,78920.0,0.08026242]
[1731222371139,0.12594221,78932.0,78920.0,0.08026242]
[1731222372944,0.10294221,78932.0,78922.0,0.023]
[1731222373256,0.10294221,78932.0,78921.0,0.1]
[1731222373257,0.10294221,78932.0,78923.0,0.00746195]
[1731222373575,0.10294221,78932.0,78922.0,0.023]
[1731222373803,0.10294221,78932.0,78923.0,0.00746195]
[1731222378404,0.17732149,78928.0,78923.0,0.00746195]
[1731222378743,0.12594221,78927.0,78920.0,0.0588303]
[1731222379305,0.11641959,78921.0,78920.0,0.0588303]
[1731222381305,0.303373,78921.0,78920.0,0.0588303]
[1731222382704,0.12594221,78921.0,78920.0,0.0588303]
[1731222383110,0.15627951,78921.0,78920.0,0.0588303]
[1731222383300,0.12594221,78921.0,78920.0,0.0588303]
[1731222384324,0.12594221,78921.0,78920.0,0.0596683]
[1731222384736,0.12594221,78921.0,78920.0,0.06711162]
[1731222385439,0.01046202,78931.0,78920.0,0.06711162]
[1731222385657,0.12594221,78930.0,78920.0,0.06711162]
[1731222385874,0.12594221,78930.0,78920.0,0.0596683]
[1731222386981,0.303373,78930.0,78920.0,0.0596683]
[1731222388439,0.280373,78930.0,78920.0,0.0596683]
[1731222391260,0.17743079,78925.0,78920.0,0.0596683]
[1731222391485,0.12594221,78924.0,78920.0,0.0596683]
[1731222392146,0.12594221,78924.0,78921.0,0.00638998]
[1731222394428,0.001676,78932.0,78921.0,0.00638998]